bitfinex/quotes_BTCUSD_20241111
["timestamp","ask_amount","ask_price","bid_price","bid_amount"]
[1731297653054,0.13816741,81635.0,81626.0,0.000844]
[1731297653272,0.12594221,81634.0,81632.0,0.18346267]
[1731297653472,0.12594221,81634.0,81626.0,0.000844]
[1731297653680,0.097999,81633.0,81626.0,0.000844]
[1731297653879,0.12594221,81632.0,81626.0,0.000844]
[1731297654103,0.13816741,81628.0,81626.0,0.000844]
[1731297654257,0.12594221,81627.0,81626.0,0.000844]
[1731297657019,0.22394821,81627.0,81626.0,0.000844]
[1731297657472,0.36211562,81627.0,81626.0,0.000844]
[1731297657671,0.38511562,81627.0,81626.0,0.000844]
[1731297657884,0.24694821,81627.0,81626.0,0.000844]
[1731297658057,0.38511562,81627.0,81626.0,0.000844]
[1731297658209,0.24694821,81627.0,81626.0,0.000844]
[1731297658416,0.38511562,81627.0,81626.0,0.000844]
[1731297658617,0.24694821,81627.0,81626.0,0.000844]
[1731297658840,0.36411562,81627.0,81626.0,0.000844]
[1731297659184,0.36211562,81627.0,81626.0,0.000844]
[1731297659385,0.002,81618.0,81596.0,0.001386]
[1731297659561,0.098035,81603.0,81596.0,0.076386]
[1731297659943,0.13816741,81607.0,81596.0,0.076386]
[1731297660192,0.13816741,81601.0,81596.0,0.076386]
[1731297660347,0.09804,81599.0,81596.0,0.076386]
[1731297660548,0.23620541,81601.0,81596.0,0.076386]
[1731297660749,0.12594221,81600.0,81596.0,0.076386]
[1731297661354,0.22398121,81600.0,81596.0,0.076386]
[1731297661577,0.09804,81599.0,81596.0,0.076386]
[1731297661802,0.098042,81597.0,81596.0,0.076386]
[1731297662012,0.22398421,81597.0,81596.0,0.076386]
[1731297663260,0.01308784,81605.0,81596.0,0.076386]
[1731297663503,0.18346267,81617.0,81603.0,0.0471]
[1731297663612,0.18346267,81604.0,81603.0,0.0471]
[1731297663827,0.13816741,81614.0,81603.0,0.0471]
[1731297664028,0.12594221,81613.0,81603.0,0.0471]
[1731297664456,0.098026,81611.0,81603.0,0.0471]
[1731297664672,0.22396921,81610.0,81603.0,0.0471]
[1731297664943,0.098031,81607.0,81603.0,0.0471]
[1731297665195,0.12594221,81606.0,81603.0,0.0471]
[1731297665640,0.12594221,81606.0,81605.0,0.098033]
[1731297665807,0.12594221,81606.0,81603.0,0.145135]
[1731297666228,0.12594221,81606.0,81603.0,0.0471]
[1731297666640,0.18346267,81605.0,81596.0,0.076386]
[1731297666848,0.23620941,81597.0,81596.0,0.076386]
[1731297666982,0.36215162,81597.0,81596.0,0.001386]
[1731297667739,0.22398421,81597.0,81596.0,0.001386]
[1731297668889,0.43802896,81597.0,81596.0,0.001386]
[1731297669737,0.46102896,81597.0,81596.0,0.001386]
[1731297669932,0.52944006,81597.0,81596.0,0.001386]
[1731297670158,0.46302896,81597.0,81596.0,0.001386]
[1731297670325,0.007,81592.0,81585.0,0.18346267]
[1731297670543,0.098066,81577.0,81570.0,0.0784]
[1731297670811,0.43805296,81577.0,81570.0,0.0784]
[1731297672189,0.43805296,81577.0,81562.0,0.0819]
[1731297673251,0.46105296,81577.0,81562.0,0.0819]
[1731297673556,0.36298696,81577.0,81562.0,0.078286]
[1731297673763,0.21404475,81565.0,81562.0,0.078286]
[1731297673941,0.12594221,81564.0,81562.0,0.078286]
[1731297674889,0.03650309,81618.0,81558.0,0.18346267]
[1731297674890,0.18346267,81587.0,81565.0,0.005]
[1731297675092,0.30940488,81587.0,81577.0,0.005]
[1731297675295,0.30940488,81587.0,81566.0,0.00245154]
[1731297675296,0.18346267,81587.0,81586.0,0.098056]
[1731297675650,0.18346267,81596.0,81587.0,0.098054]
[1731297675880,0.12594221,81595.0,81590.0,0.09805]
[1731297676194,0.12594221,81595.0,81585.0,0.098056]
[1731297676522,0.21404475,81603.0,81585.0,0.098056]
[1731297676523,0.21404475,81603.0,81588.0,0.18346267]
[1731297676768,0.18346267,81602.0,81596.0,0.0755]
[1731297676981,0.21404475,81620.0,81596.0,0.0755]
[1731297676982,0.12594221,81616.0,81597.0,0.196085]
[1731297677147,0.18346267,81603.0,81602.0,0.098036]
[1731297677365,0.12594221,81616.0,81602.0,0.196073]
[1731297677553,0.12594221,81616.0,81603.0,0.098034]
[1731297677777,0.12594221,81616.0,81601.0,0.145537]
[1731297678323,0.12594221,81616.0,81601.0,0.0475]
[1731297678532,0.21404475,81628.0,81605.0,0.005]
[1731297678756,0.18346267,81616.0,81610.0,0.098026]
[1731297678962,0.12594221,81619.0,81610.0,0.00245042]
[1731297679204,0.18346267,81625.0,81622.0,0.0755]
[1731297679356,0.18346267,81625.0,81624.0,0.0475]
[1731297679674,0.12594221,81625.0,81624.0,0.0475]
[1731297679888,0.18346267,81635.0,81624.0,0.0475]
[1731297680077,0.12594221,81634.0,81625.0,0.196018]
[1731297680251,0.12594221,81634.0,81627.0,0.098006]
[1731297680464,0.12594221,81634.0,81625.0,0.196018]
[1731297680663,0.12594221,81634.0,81629.0,0.098003]
[1731297681296,0.12594221,81634.0,81625.0,0.196018]
[1731297681497,0.12594221,81634.0,81625.0,0.19846795]
[1731297681735,0.12594221,81634.0,81626.0,0.196015]
[1731297681903,0.12594221,81634.0,81627.0,0.00244992]
[1731297682250,0.12594221,81634.0,81632.0,0.098]
[1731297682384,0.12594221,81634.0,81625.0,0.005]
[1731297682580,0.12594221,81634.0,81626.0,0.00244992]
[1731297682785,0.12594221,81634.0,81629.0,0.098004]
[1731297683193,0.12594221,81634.0,81628.0,0.098005]
[1731297683373,0.12594221,81634.0,81626.0,0.196015]
[1731297683596,0.12594221,81634.0,81628.0,0.098004]
[1731297683808,0.12594221,81634.0,81627.0,0.196013]
[1731297684007,0.12594221,81634.0,81625.0,0.005]
[1731297684211,0.18346267,81633.0,81624.0,0.0475]
[1731297684418,0.12594221,81632.0,81624.0,0.0475]
[1731297685436,0.12594221,81632.0,81622.0,0.0755]
[1731297686113,0.12594221,81632.0,81623.0,0.18346267]
[1731297686332,0.12594221,81632.0,81631.0,0.098001]
[1731297686516,0.12594221,81632.0,81624.0,0.005]
[1731297686940,0.12594221,81632.0,81624.0,0.10301]
[1731297687151,0.18346267,81629.0,81622.0,0.0755]
[1731297687424,0.12594221,81628.0,81622.0,0.0755]
[1731297687605,0.001688,81634.0,81623.0,0.0024501]
[1731297687736,0.12594221,81633.0,81632.0,0.098]
[1731297687942,0.12594221,81633.0,81630.0,0.098003]
[1731297688352,0.12594221,81633.0,81630.0,0.098002]
[1731297688551,0.12594221,81633.0,81627.0,0.098006]
[1731297688762,0.12594221,81633.0,81628.0,0.098005]
[1731297688955,0.12594221,81633.0,81629.0,0.098004]
[1731297689361,0.12594221,81633.0,81630.0,0.098002]
[1731297689561,0.12594221,81633.0,81627.0,0.196013]
[1731297689842,0.12594221,81633.0,81626.0,0.098007]
[1731297690036,0.12594221,81633.0,81624.0,0.005]
[1731297690648,0.12594221,81633.0,81626.0,0.098007]
[1731297691039,0.12594221,81633.0,81624.0,0.005]
[1731297691240,0.12594221,81633.0,81622.0,0.0805]
[1731297691445,0.12594221,81633.0,81622.0,0.0755]
[1731297692257,0.18346267,81632.0,81622.0,0.0755]
[1731297692456,0.12594221,81631.0,81622.0,0.0755]
[1731297695421,0.21404475,81628.0,81622.0,0.0755]
[1731297695627,0.12594221,81627.0,81622.0,0.0755]
[1731297695830,0.12594221,81627.0,81613.0,0.1305]
[1731297696030,0.12496215,81627.0,81613.0,0.1305]
[1731297696533,0.12496215,81627.0,81613.0,0.228523]
[1731297696745,0.18346267,81626.0,81613.0,0.1305]
[1731297696918,0.12594221,81625.0,81613.0,0.1305]
[1731297697502,0.12594221,81625.0,81613.0,0.0813]
[1731297698917,0.12594221,81625.0,81615.0,0.18346267]
[1731297699143,0.12594221,81625.0,81616.0,0.00245037]
[1731297699373,0.12594221,81625.0,81619.0,0.098015]
[1731297699577,0.12594221,81625.0,81613.0,0.0813]
[1731297699782,0.12594221,81625.0,81615.0,0.09802]
[1731297700118,0.18346267,81624.0,81613.0,0.179322]
[1731297700321,0.12594221,81623.0,81613.0,0.0813]
[1731297700760,0.21404475,81617.0,81604.0,0.0757]
[1731297701006,0.12594221,81616.0,81604.0,0.0757]
[1731297701605,0.18346267,81615.0,81604.0,0.0757]
[1731297701921,0.18346267,81615.0,81592.0,0.0757]
[1731297701922,0.21404475,81609.0,81592.0,0.0757]
[1731297702126,0.21404475,81609.0,81598.0,0.18346267]
[1731297702127,0.12594221,81608.0,81598.0,0.18346267]
[1731297702257,0.12594221,81608.0,81592.0,0.0757]
[1731297702459,0.21404475,81600.0,81592.0,0.0757]
[1731297702721,0.12594221,81599.0,81592.0,0.0757]
[1731297704389,0.21404475,81608.0,81596.0,0.098043]
[1731297704613,0.18346267,81604.0,81594.0,0.098045]
[1731297704815,0.12594221,81603.0,81592.0,0.0757]
[1731297705393,0.12594221,81603.0,81593.0,0.098047]
[1731297705567,0.12594221,81603.0,81594.0,0.098046]
[1731297705929,0.12594221,81603.0,81592.0,0.0757]
[1731297705930,0.12594221,81603.0,81592.0,0.173747]
[1731297706110,0.12594221,81603.0,81592.0,0.0757]
[1731297706750,0.12594221,81603.0,81593.0,0.098046]
[1731297706925,0.19673492,81615.0,81596.0,0.053]
[1731297706926,0.18346267,81615.0,81596.0,0.053]
[1731297707155,0.18346267,81606.0,81605.0,0.098033]
[1731297707283,0.30940488,81606.0,81598.0,0.0768]
[1731297707617,0.12594221,81605.0,81598.0,0.174841]
[1731297707792,0.12594221,81605.0,81598.0,0.0768]
[1731297709633,0.12594221,81605.0,81600.0,0.098038]
[1731297709993,0.12594221,81605.0,81598.0,0.17484]
[1731297710403,0.12594221,81605.0,81599.0,0.196078]
[1731297710607,0.12594221,81605.0,81601.0,0.196075]
[1731297710842,0.12594221,81605.0,81602.0,0.005]
[1731297711164,0.12594221,81605.0,81603.0,0.098034]
[1731297711577,0.12594221,81605.0,81604.0,0.098034]
[1731297711829,0.18346267,81615.0,81602.0,0.005]
[1731297712071,0.18346267,81624.0,81606.0,0.196064]
[1731297712072,0.30940488,81614.0,81606.0,0.196064]
[1731297712299,0.30940488,81614.0,81609.0,0.098027]
[1731297712424,0.12594221,81614.0,81605.0,0.076]
[1731297712633,0.12594221,81614.0,81608.0,0.098029]
[1731297713037,0.12594221,81614.0,81605.0,0.076]
[1731297713586,0.12594221,81614.0,81605.0,0.174032]
[1731297713737,0.12594221,81614.0,81606.0,0.196064]
[1731297713967,0.12594221,81614.0,81609.0,0.098027]
[1731297714166,0.12594221,81614.0,81607.0,0.196061]
[1731297714600,0.12594221,81614.0,81608.0,0.196059]
[1731297714800,0.12594221,81614.0,81613.0,0.098023]
[1731297714957,0.001688,81627.0,81621.0,0.098013]
[1731297715172,0.18346267,81624.0,81622.0,0.082]
[1731297715373,0.12594221,81623.0,81622.0,0.082]
[1731297715604,0.26417978,81623.0,81622.0,0.082]
[1731297717973,0.12594221,81621.0,81612.0,0.196049]
[1731297718156,0.12594221,81621.0,81613.0,0.196047]
[1731297718412,0.18346267,81620.0,81611.0,0.180025]
[1731297718611,0.12594221,81619.0,81611.0,0.082]
[1731297719537,0.18346267,81618.0,81611.0,0.082]
[1731297719739,0.12594221,81617.0,81611.0,0.082]
[1731297720185,0.13823757,81615.0,81611.0,0.082]
[1731297720341,0.12594221,81614.0,81611.0,0.082]
[1731297721675,0.001688,81627.0,81613.0,0.196046]
[1731297721927,0.18346267,81623.0,81618.0,0.098017]
[1731297722229,0.03640471,81672.0,81665.0,0.005]
[1731297722486,0.05460706,81675.0,81672.0,0.120952]
[1731297722814,0.07280942,81677.0,81676.0,0.109947]
[1731297723038,0.000694,81684.0,81678.0,0.109945]
[1731297723257,0.000694,81684.0,81678.0,0.13539301]
[1731297723484,0.000694,81684.0,81683.0,0.109939]
[1731297723721,0.03180813,81686.0,81685.0,0.109937]
[1731297723936,0.000694,81707.0,81693.0,0.131927]
[1731297724176,0.000694,81707.0,81693.0,0.177127]
[1731297724816,0.000694,81707.0,81693.0,0.30751685]
[1731297725011,0.000694,81707.0,81693.0,0.30306921]
[1731297725211,0.000694,81707.0,81693.0,0.30506921]
[1731297726254,0.000694,81707.0,81693.0,0.31939573]
[1731297726452,0.000694,81707.0,81693.0,0.22307509]
[1731297726613,0.000694,81707.0,81693.0,0.31900209]
[1731297726794,0.000694,81707.0,81693.0,0.32100209]
[1731297727680,0.18430714,81707.0,81693.0,0.32100209]
[1731297728330,0.18430714,81707.0,81693.0,0.19514221]
[1731297728476,0.18430714,81707.0,81706.0,0.097912]
[1731297728679,0.000694,81707.0,81706.0,0.097912]
[1731297728879,0.000694,81707.0,81706.0,0.10035926]
[1731297729109,0.000694,81707.0,81687.0,0.18361314]
[1731297729344,0.000694,81707.0,81700.0,0.097918]
[1731297729572,0.000694,81707.0,81696.0,0.18361314]
[1731297729573,0.000694,81707.0,81701.0,0.097917]
[1731297729698,0.000694,81707.0,81700.0,0.097918]
[1731297730121,0.000694,81707.0,81693.0,0.195853]
[1731297730122,0.000694,81707.0,81687.0,0.18361314]
[1731297730330,0.000694,81707.0,81696.0,0.18361314]
[1731297730529,0.21330871,81703.0,81689.0,0.097932]
[1731297730733,0.21330871,81703.0,81687.0,0.18361314]
[1731297731144,0.196517,81707.0,81624.0,0.490048]
[1731297731145,0.21330871,81694.0,81669.0,0.27721]
[1731297731393,0.21330871,81694.0,81687.0,0.18361314]
[1731297731630,0.21330871,81694.0,81676.0,0.195895]
[1731297731756,0.21330871,81694.0,81685.0,0.097936]
[1731297731964,0.21330871,81694.0,81682.0,0.09794]
[1731297732165,0.21330871,81694.0,81681.0,0.195883]
[1731297732440,0.21330871,81694.0,81673.0,0.195901]
[1731297732682,0.195845,81697.0,81674.0,0.18361314]
[1731297732683,0.21330871,81686.0,81674.0,0.18361314]
[1731297733237,0.31624471,81686.0,81674.0,0.18361314]
[1731297733453,0.21830871,81686.0,81674.0,0.18361314]
[1731297733621,0.21830871,81686.0,81675.0,0.097948]
[1731297734034,0.21830871,81686.0,81674.0,0.18361314]
[1731297734296,0.097939,81684.0,81664.0,0.195924]
[1731297734490,0.31624471,81686.0,81670.0,0.18361314]
[1731297734695,0.21330871,81678.0,81661.0,0.18361314]
[1731297734915,0.21330871,81678.0,81662.0,0.195929]
[1731297735062,0.21330871,81678.0,81664.0,0.097961]
[1731297735263,0.21330871,81678.0,81661.0,0.18361314]
[1731297735454,0.31125471,81678.0,81661.0,0.18361314]
[1731297735659,0.21330871,81670.0,81653.0,0.195949]
[1731297735873,0.21330871,81670.0,81643.0,0.18361314]
[1731297735874,0.21830871,81670.0,81665.0,0.18361314]
[1731297736198,0.21830871,81670.0,81655.0,0.18361314]
[1731297736407,0.21830871,81670.0,81656.0,0.097971]
[1731297736666,0.195912,81669.0,81655.0,0.18361314]
[1731297736880,0.09796,81666.0,81644.0,0.391944]
[1731297737050,0.12594221,81666.0,81656.0,0.18361314]
[1731297737247,0.21830871,81670.0,81643.0,0.18361314]
[1731297737248,0.21830871,81670.0,81657.0,0.002449]
[1731297737407,0.21830871,81670.0,81657.0,0.09797]
[1731297737664,0.21830871,81670.0,81654.0,0.097973]
[1731297738011,0.21830871,81670.0,81655.0,0.28158514]
[1731297738012,0.31626371,81670.0,81655.0,0.28158514]
[1731297738199,0.18361314,81656.0,81613.0,0.18361314]
[1731297738428,0.18361314,81665.0,81638.0,0.18361314]
[1731297738429,0.097992,81639.0,81638.0,0.18361314]
[1731297738616,0.097992,81639.0,81620.0,0.18361314]
[1731297738617,0.005,81637.0,81620.0,0.18361314]
[1731297738851,0.005,81637.0,81622.0,0.196025]
[1731297739000,0.005,81637.0,81624.0,0.098009]
[1731297739210,0.005,81638.0,81626.0,0.098007]
[1731297739440,0.005,81638.0,81627.0,0.00244985]
[1731297739441,0.31455535,81638.0,81627.0,0.00244985]
[1731297739642,0.31455535,81638.0,81625.0,0.098008]
[1731297740029,0.31455535,81638.0,81626.0,0.00244985]
[1731297740443,0.30955535,81638.0,81627.0,0.098006]
[1731297741248,0.30955535,81638.0,81622.0,0.196025]
[1731297741249,0.30955535,81638.0,81625.0,0.098009]
[1731297741853,0.31630071,81639.0,81603.0,0.18361314]
[1731297741854,0.103032,81606.0,81603.0,0.18361314]
[1731297742027,0.21330871,81604.0,81603.0,0.18361314]
[1731297742235,0.005,81606.0,81603.0,0.18361314]
[1731297742406,0.005,81616.0,81604.0,0.196068]
[1731297742607,0.005,81628.0,81614.0,0.098022]
[1731297742823,0.005,81626.0,81607.0,0.196061]
[1731297742995,0.005,81626.0,81612.0,0.128024]
[1731297743195,0.005,81626.0,81612.0,0.03]
[1731297743397,0.005,81626.0,81613.0,0.18361314]
[1731297743820,0.005,81626.0,81625.0,0.000843]
[1731297744062,0.103007,81626.0,81625.0,0.000843]
[1731297744647,0.005,81626.0,81625.0,0.000843]
[1731297745266,0.098007,81626.0,81625.0,0.000843]
[1731297745468,0.23394921,81626.0,81625.0,0.000843]
[1731297747967,0.2982762,81626.0,81625.0,0.000843]
[1731297748628,0.23394921,81626.0,81625.0,0.000843]
[1731297749262,0.33594921,81626.0,81625.0,0.000843]
[1731297749594,0.103023,81613.0,81612.0,0.18361314]
[1731297749739,0.44727392,81613.0,81612.0,0.18361314]
[1731297749905,0.34925092,81613.0,81600.0,0.000844]
[1731297750125,0.098034,81604.0,81600.0,0.000844]
[1731297750335,0.01,81605.0,81600.0,0.000844]
[1731297750537,0.098038,81601.0,81600.0,0.000844]
[1731297750789,0.103038,81601.0,81600.0,0.000844]
[1731297751208,0.23398021,81601.0,81600.0,0.000844]
[1731297752857,0.13094221,81601.0,81600.0,0.000844]
[1731297753453,0.005,81601.0,81600.0,0.000844]
[1731297754823,0.103038,81601.0,81600.0,0.000844]
[1731297758694,0.005,81601.0,81600.0,0.000844]
[1731297758877,0.103038,81601.0,81600.0,0.000844]
[1731297763136,0.23398021,81601.0,81600.0,0.000844]
[1731297763772,0.13594221,81601.0,81600.0,0.000844]
[1731297764091,0.23398021,81601.0,81600.0,0.000844]
[1731297767510,0.14932468,81601.0,81600.0,0.000844]
[1731297767732,0.13094221,81601.0,81600.0,0.000844]
[1731297767931,0.13594221,81601.0,81600.0,0.000844]
[1731297768064,0.13094221,81601.0,81600.0,0.000844]
[1731297768464,0.23398021,81601.0,81600.0,0.000844]
[1731297768887,0.22898021,81601.0,81600.0,0.000844]
[1731297769125,0.12594221,81601.0,81600.0,0.000844]
[1731297769276,0.13594221,81601.0,81600.0,0.000844]
[1731297769605,0.22898021,81601.0,81600.0,0.000844]
[1731297770240,0.23398021,81601.0,81600.0,0.000844]
[1731297770368,0.22898021,81601.0,81600.0,0.000844]
[1731297770812,0.23398021,81601.0,81600.0,0.000844]
[1731297771544,0.22898021,81601.0,81600.0,0.000844]
[1731297771941,0.13094221,81601.0,81600.0,0.000844]
[1731297772712,0.12594221,81601.0,81600.0,0.000844]
[1731297772920,0.005,81608.0,81600.0,0.000844]
[1731297773106,0.13094221,81607.0,81600.0,0.000844]
[1731297773314,0.12594221,81607.0,81600.0,0.000844]
[1731297773511,0.13094221,81607.0,81600.0,0.000844]
[1731297774014,0.005,81602.0,81600.0,0.000844]
[1731297774328,0.103037,81602.0,81600.0,0.000844]
[1731297775164,0.005,81602.0,81600.0,0.000844]
[1731297775635,0.098038,81601.0,81600.0,0.000844]
[1731297775804,0.103037,81602.0,81600.0,0.000844]
[1731297776004,0.098038,81601.0,81600.0,0.000844]
[1731297777203,0.23398021,81601.0,81600.0,0.000844]
[1731297778143,0.103057,81585.0,81584.0,0.18361314]
[1731297778289,0.44230792,81585.0,81584.0,0.18361314]
[1731297778531,0.098069,81575.0,81573.0,0.001386]
[1731297778737,0.31137771,81575.0,81573.0,0.001386]
[1731297779126,0.09807,81574.0,81573.0,0.001386]
[1731297780196,0.21330871,81575.0,81573.0,0.001386]
[1731297780401,0.005,81578.0,81573.0,0.001386]
[1731297780611,0.22900821,81578.0,81573.0,0.001386]
[1731297780819,0.12594221,81578.0,81575.0,0.18361314]
[1731297780989,0.005,81579.0,81573.0,0.001386]
[1731297781196,0.005,81592.0,81573.0,0.18499914]
[1731297781393,0.12594221,81591.0,81584.0,0.098057]
[1731297781912,0.005,81597.0,81576.0,0.0754]
[1731297782119,0.01,81598.0,81583.0,0.098058]
[1731297782439,0.13094221,81598.0,81589.0,0.03]
[1731297782631,0.005,81597.0,81589.0,0.03]
[1731297782846,0.13094221,81598.0,81590.0,0.18361314]
[1731297782847,0.005,81593.0,81590.0,0.18361314]
[1731297783058,0.005,81598.0,81590.0,0.18361314]
[1731297783282,0.001688,81602.0,81591.0,0.04028486]
[1731297783508,0.001688,81602.0,81601.0,0.098038]
[1731297783694,0.001688,81602.0,81601.0,0.1004886]
[1731297783916,0.001688,81602.0,81601.0,0.0024506]
[1731297784071,0.001688,81602.0,81592.0,0.274497]
[1731297784277,0.001688,81602.0,81593.0,0.23391214]
[1731297784497,0.001688,81602.0,81595.0,0.098044]
[1731297784703,0.001688,81602.0,81596.0,0.03781714]
[1731297784924,0.001688,81602.0,81597.0,0.03781714]
[1731297785137,0.001688,81602.0,81595.0,0.098045]
[1731297785277,0.001688,81602.0,81592.0,0.0784]
[1731297785487,0.001688,81602.0,81594.0,0.098046]
[1731297785690,0.001688,81602.0,81593.0,0.098047]
[1731297785891,0.001688,81602.0,81594.0,0.13584944]
[1731297786135,0.001688,81602.0,81592.0,0.0784]
[1731297786337,0.001688,81602.0,81601.0,0.098038]
[1731297786697,0.001688,81602.0,81601.0,0.10048863]
[1731297787115,0.001688,81602.0,81595.0,0.098044]
[1731297787310,0.001688,81602.0,81596.0,0.03780071]
[1731297787709,0.001688,81602.0,81597.0,0.196085]
[1731297787958,0.001688,81602.0,81601.0,0.098038]
[1731297788159,0.001688,81602.0,81597.0,0.294127]
[1731297788364,0.001688,81602.0,81597.0,0.098042]
[1731297788806,0.001688,81602.0,81592.0,0.0784]
[1731297789010,0.001688,81602.0,81598.0,0.09804]
[1731297789226,0.001688,81602.0,81601.0,0.098038]
[1731297789886,0.001688,81602.0,81601.0,0.10048864]
[1731297790478,0.001688,81602.0,81601.0,0.13826505]
[1731297790612,0.001688,81602.0,81601.0,0.13581441]
[1731297791671,0.001688,81602.0,81600.0,0.000843]
[1731297791874,0.001688,81602.0,81601.0,0.13673319]
[1731297792088,0.001688,81602.0,81601.0,0.00245035]
[1731297792499,0.001688,81602.0,81601.0,0.10048835]
[1731297792713,0.001688,81602.0,81600.0,0.03708784]
[1731297792859,0.001688,81602.0,81600.0,0.000843]
[1731297793274,0.001688,81602.0,81600.0,0.03708784]
[1731297793481,0.001688,81602.0,81600.0,0.000843]
[1731297794350,0.001688,81602.0,81600.0,0.03708784]
[1731297794912,0.00069292,81602.0,81600.0,0.03708784]
[1731297795806,0.00069292,81602.0,81601.0,0.10048868]
[1731297796209,0.00069292,81602.0,81601.0,0.13673352]
[1731297796411,0.00069292,81602.0,81601.0,0.00245068]
[1731297796970,0.00069292,81602.0,81601.0,0.10048868]
[1731297797375,0.00069292,81602.0,81601.0,0.03870325]
[1731297797593,0.196018,81626.0,81601.0,0.00245068]
[1731297797807,0.32197421,81619.0,81603.0,0.098035]
[1731297798053,0.196035,81618.0,81602.0,0.098036]
[1731297798244,0.09802,81616.0,81604.0,0.18361314]
[1731297798462,0.12594221,81615.0,81604.0,0.18361314]
[1731297799064,0.098023,81614.0,81604.0,0.18361314]
[1731297799292,0.12594221,81613.0,81604.0,0.18361314]
[1731297800053,0.12594221,81613.0,81604.0,0.28164614]
[1731297800394,0.01345329,81621.0,81605.0,0.196066]
[1731297800666,0.12594221,81620.0,81605.0,0.19851667]
[1731297800881,0.18361314,81626.0,81604.0,0.18361314]
[1731297800882,0.12594221,81621.0,81607.0,0.392122]
[1731297801050,0.001688,81625.0,81606.0,0.07995049]
[1731297801051,0.001688,81625.0,81616.0,0.098019]
[1731297801194,0.001688,81625.0,81615.0,0.294063]
[1731297801395,0.001688,81625.0,81606.0,0.32994286]
[1731297801396,0.001688,81625.0,81610.0,0.03625257]
[1731297801620,0.001688,81625.0,81619.0,0.098016]
[1731297801820,0.001688,81625.0,81615.0,0.196042]
[1731297802242,0.001688,81625.0,81613.0,0.18361314]
[1731297802448,0.001688,81625.0,81613.0,0.28163614]
[1731297802850,0.001688,81625.0,81613.0,0.18361314]
[1731297803078,0.001688,81625.0,81607.0,0.19606]
[1731297803079,0.40932871,81624.0,81607.0,0.19606]
[1731297803301,0.31131871,81624.0,81612.0,0.098024]
[1731297803418,0.21330871,81624.0,81613.0,0.28163614]
[1731297803794,0.21330871,81624.0,81613.0,0.18361314]
[1731297804365,0.001688,81625.0,81614.0,0.098021]
[1731297804691,0.001688,81625.0,81616.0,0.098019]
[1731297804837,0.001688,81625.0,81617.0,0.098018]
[1731297805059,0.001688,81625.0,81620.0,0.098015]
[1731297805676,0.001688,81625.0,81614.0,0.196044]
[1731297806082,0.001688,81625.0,81618.0,0.098017]
[1731297806413,0.001688,81625.0,81617.0,0.098018]
[1731297806561,0.001688,81625.0,81618.0,0.098017]
[1731297807206,0.001688,81625.0,81620.0,0.196028]
[1731297807408,0.001688,81625.0,81621.0,0.098013]
[1731297807689,0.001688,81625.0,81614.0,0.196044]
[1731297808013,0.001688,81625.0,81620.0,0.098014]
[1731297808256,0.001688,81625.0,81617.0,0.098017]
[1731297808404,0.001688,81625.0,81618.0,0.098017]
[1731297808825,0.001688,81625.0,81615.0,0.196042]
[1731297808826,0.001688,81625.0,81616.0,0.294058]
[1731297809032,0.001688,81625.0,81617.0,0.098018]
[1731297809931,0.001688,81625.0,81613.0,0.18361314]
[1731297810117,0.001688,81625.0,81613.0,0.28163514]
[1731297810322,0.001688,81625.0,81613.0,0.18361314]
[1731297810546,0.001688,81625.0,81616.0,0.098019]
[1731297810952,0.13991059,81625.0,81608.0,0.03625257]
[1731297811182,0.13822259,81618.0,81613.0,0.18361314]
[1731297811789,0.09802,81616.0,81605.0,0.0361989]
[1731297812022,0.098021,81615.0,81604.0,0.21981204]
[1731297812233,0.22396121,81617.0,81604.0,0.21981204]
[1731297812401,0.09802,81616.0,81604.0,0.21981204]
[1731297812900,0.09802,81616.0,81604.0,0.31784604]
[1731297813114,0.12594221,81617.0,81604.0,0.21981204]
[1731297813250,0.12594221,81617.0,81604.0,0.31784604]
[1731297813692,0.32198021,81617.0,81604.0,0.21981204]
[1731297813897,0.196039,81616.0,81600.0,0.0370419]
[1731297814112,0.196044,81614.0,81602.0,0.18361314]
[1731297814384,0.098026,81611.0,81600.0,0.000843]
[1731297814495,0.22396521,81613.0,81603.0,0.18361314]
[1731297815103,0.098024,81612.0,81603.0,0.18361314]
[1731297815305,0.098026,81611.0,81603.0,0.18361314]
[1731297815513,0.22396521,81613.0,81603.0,0.18141314]
[1731297815943,0.21836616,81613.0,81603.0,0.18141314]
[1731297816148,0.001686,81617.0,81603.0,0.27944814]
[1731297816149,0.098021,81615.0,81603.0,0.27944814]
[1731297816380,0.098023,81613.0,81603.0,0.18141314]
[1731297816579,0.12594221,81614.0,81603.0,0.18141314]
[1731297817317,0.12594221,81614.0,81603.0,0.37748214]
[1731297817453,0.12594221,81614.0,81604.0,0.098033]
[1731297817667,0.12594221,81614.0,81603.0,0.18141314]
[1731297818014,0.12594221,81614.0,81604.0,0.10048461]
[1731297818719,0.12594221,81614.0,81604.0,0.00245061]
[1731297818916,0.12594221,81614.0,81603.0,0.18141314]
[1731297819411,0.12594221,81614.0,81604.0,0.10048461]
[1731297819622,0.12594221,81614.0,81603.0,0.18141314]
[1731297819860,0.12594221,81614.0,81604.0,0.10048361]
[1731297820082,0.12594221,81614.0,81604.0,0.098033]
[1731297820421,0.12594221,81614.0,81603.0,0.18141314]
[1731297820745,0.12594221,81614.0,81604.0,0.098034]
[1731297821150,0.12594221,81614.0,81603.0,0.18141314]
[1731297822085,0.098026,81611.0,81603.0,0.18141314]
[1731297822290,0.098023,81613.0,81603.0,0.18141314]
[1731297822591,0.098025,81612.0,81603.0,0.18141314]
[1731297823138,0.22396521,81614.0,81603.0,0.18141314]
[1731297823356,0.12594221,81614.0,81603.0,0.18141314]
[1731297823559,0.098024,81613.0,81603.0,0.18141314]
[1731297823786,0.196071,81603.0,81600.0,0.000843]
[1731297823994,0.098038,81601.0,81600.0,0.000843]
[1731297824195,0.22398021,81601.0,81600.0,0.000843]
[1731297825394,0.30048021,81601.0,81600.0,0.000843]
[1731297827641,0.098028,81609.0,81600.0,0.000843]
[1731297827843,0.12594221,81608.0,81600.0,0.000843]
[1731297828477,0.098031,81607.0,81600.0,0.000843]
[1731297828679,0.22397321,81607.0,81600.0,0.000843]
[1731297829220,0.201042,81615.0,81600.0,0.000843]